{"text_format":"1","workbook":"xlsx","n_sheets":3,"sheets":["Steuerung","Berechnungen","Tabelle3"],"not_rendered":{"charts":0,"images":3,"macros":1,"external_links":0,"defined_names":0,"comments":1,"pivot_tables":0},"unopened":[],"bounds":{"document_bytes":16777216,"sheet_cells":100000,"rows_first":2000,"rows_last":500,"rows_between":2000,"halvings":0,"cell_chars":16384,"cell_head_chars":4096},"cells_cut":0,"cells_raw":0,"read":"whole","date_system":"1900"}

{"sheet":"Steuerung","index":0,"n_rows":56,"n_cols":14,"rows_kept":56,"cut":false,"hidden":false,"merged":[[49,12,52,13],[25,12,28,13],[37,12,40,13],[1,1,1,5],[1,12,1,13],[13,12,16,13]]}
[]
[null,"Maschinenstundensatzrechnung",null,null,null,null,null,null,null,null,null,null,"Ergebnisse der Kostenträgerrechnung"]
[]
[null,"Maschinenstundensatz ohne Beschäftigungsrückgang,",null,null,null,null,"Maschinenstundensatz fix",null,null,{"$f":"Berechnungen!F33","v":44.037037037037038},"€",null,"Herstellkosten",{"$f":"IF(Berechnungen!K31=\"ohne Verzicht auf Fixkostendeckung\",Berechnungen!K21,0)","v":1091.1851851851852}]
[null,"ohne Verzicht auf Deckung der fixen Kosten",null,null,null,null,"Maschinenstundensatz variabel",null,null,{"$f":"Berechnungen!G33","v":10},"€",null,"Selbstkosten",{"$f":"IF(Berechnungen!K31=\"ohne Verzicht auf Fixkostendeckung\",Berechnungen!K24,0)","v":1331.245925925926}]
[null,"und ohne strukturelle Änderungen der Arbeitszeit",null,null,null,null,"Maschinenstundensatz insgesamt",null,null,{"$f":"Berechnungen!C33","v":54.037037037037038},"€",null,"Barverkaufspreis",{"$f":"IF(Berechnungen!K31=\"ohne Verzicht auf Fixkostendeckung\",Berechnungen!K26,0)","v":1397.8082222222224}]
[null,null,null,null,null,null,"gesamte jährliche fixe Kosten",null,null,{"$f":"Berechnungen!E31","v":79266.666666666672},"€",null,"Nettoverkaufspreis",{"$f":"IF(Berechnungen!K31=\"ohne Verzicht auf Fixkostendeckung\",Berechnungen!K30,0)","v":1601.1548937253406}]
[null,null,null,null,null,null,"gesamte monatliche fixe Kosten",null,null,{"$f":"Berechnungen!F31","v":6605.5555555555557},"€"]
[]
[null,"Fall 1",null,null,null,null,"Beschäftigungsrückgang",null,null,{"$f":"Berechnungen!C16","v":0},"%",null,"Herstellkosten",{"$f":"Berechnungen!K21","v":1091.1851851851852}]
[null,"Maschinenstundensatz bei Beschäftigungsrückgang ",null,null,null,null,"Verzicht auf Fixkostendeckung",null,null,{"$f":"IF(J10>0,Berechnungen!C17,0)","v":0},"%",null,"Selbstkosten",{"$f":"Berechnungen!K24","v":1331.245925925926}]
[null,"ohne Verzicht auf Fixkostendeckung oder Verzicht auf",null,null,null,null,"Maschinenstundensatz fix",null,null,{"$f":"Berechnungen!F44","v":0},"€",null,"Barverkaufspreis",{"$f":"Berechnungen!K26","v":1397.8082222222224}]
[null,"Deckung fixer Kosten die auf den Beschäftigungsrückgang",null,null,null,null,"Maschinenstundensatz variabel",null,null,{"$f":"Berechnungen!G44","v":0},"€",null,"Nettoverkaufspreis",{"$f":"Berechnungen!K30","v":1601.1548937253406}]
[null,"entfallen. ",null,null,null,null,"Maschinenstundensatz insgesamt",null,null,{"$f":"Berechnungen!H44","v":0},"€",null,{"$f":"IF(Berechnungen!K31=\"ohne Verzicht auf Fixkostendeckung\",\"kein Beschäftigungsrückgang, kein Verzicht auf Fixkostendeckung\",\"\")","v":"kein Beschäftigungsrückgang, kein Verzicht auf Fixkostendeckung"}]
[null,"Bei einem Verzicht von 100% bleibt der Maschinenstunden-",null,null,null,null,"jährlich ersetzbare fixe Kosten",null,null,{"$f":"Berechnungen!F46","v":0},"€"]
[null,"satz ohne Beschäftigungsrückgang erhalten.",null,null,null,null,"jährlich nicht ersetzbare fixe Kosten",null,null,{"$f":"Berechnungen!F48","v":0},"€"]
[null,"Der Maschinenstundensatz fix und die nicht ersetzbaren",null,null,null,null,"gesamte jährliche fixe Kosten",null,null,{"$f":"Berechnungen!E31","v":79266.666666666672},"€"]
[null,"fixen Kosten werden nur von dem Fixkostenanteil ",null,null,null,null,"monatlich ersetzbare fixe Kosten",null,null,{"$f":"Berechnungen!F47","v":0},"€"]
[null,"berechnet, der auf den Beschäftigungsrückgang",null,null,null,null,"monatlich nicht ersetzbare fixe Kosten",null,null,{"$f":"Berechnungen!F49","v":0},"€"]
[null,"zurückzuführen ist. ",null,null,null,null,"gesamte monatliche fixe Kosten",null,null,{"$f":"Berechnungen!F31","v":6605.5555555555557},"€"]
[]
[null,"Fall 2",null,null,null,null,"Beschäftigungsrückgang",null,null,0,"%",null,"Herstellkosten",{"$f":"Berechnungen!L21","v":1091.1851851851852}]
[null,null,null,null,null,null,"Verzicht auf Fixkostendeckung",null,null,{"$f":"IF(Berechnungen!C16>0,0,Berechnungen!C17)","v":0},"%",null,"Selbstkosten",{"$f":"Berechnungen!L24","v":1331.245925925926}]
[null,"Maschinenstundensatz ohne Beschäftigungsrückgang ",null,null,null,null,"Maschinenstundensatz fix",null,null,{"$f":"Berechnungen!F57","v":0},"€",null,"Barverkaufspreis",{"$f":"Berechnungen!L26","v":1397.8082222222224}]
[null,"aber mit Verzicht auf Deckung eines Teils der gesamten",null,null,null,null,"Maschinenstundensatz variabel",null,null,{"$f":"Berechnungen!G57","v":0},"€",null,"Nettoverkaufspreis",{"$f":"Berechnungen!L30","v":1601.1548937253406}]
[null,"fixen Kosten.",null,null,null,null,"Maschinenstundensatz insgesamt",null,null,{"$f":"Berechnungen!H57","v":0},"€",null,{"$f":"IF(Berechnungen!K31=\"ohne Verzicht auf Fixkostendeckung\",\"kein Beschäftigungsrückgang, kein Verzicht auf Fixkostendeckung\",\"\")","v":"kein Beschäftigungsrückgang, kein Verzicht auf Fixkostendeckung"}]
[null,null,null,null,null,null,"jährlich ersetzbare fixe Kosten",null,null,{"$f":"Berechnungen!F59","v":0},"€"]
[null,"Der Maschinenstundensatz fix und die nicht ersetzbaren",null,null,null,null,"jährlich nicht ersetzbare fixe Kosten",null,null,{"$f":"Berechnungen!F61","v":0},"€"]
[null,"fixen Kosten werden von den gesamten fixen Kosten",null,null,null,null,"gesamte jährliche fixe Kosten",null,null,{"$f":"Berechnungen!E31","v":79266.666666666672},"€"]
[null,"berechnet.",null,null,null,null,"monatlich ersetzbare fixe Kosten",null,null,{"$f":"Berechnungen!F60","v":0},"€"]
[null,null,null,null,null,null,"monatlich nicht ersetzbare fixe Kosten",null,null,{"$f":"Berechnungen!F62","v":0},"€"]
[null,null,null,null,null,null,"gesamte monatliche fixe Kosten",null,null,{"$f":"Berechnungen!F31","v":6605.5555555555557},"€"]
[]
[null,"Fall 3",null,null,null,null,"Beschäftigungsrückgang",null,null,{"$f":"Berechnungen!C16","v":0},"%",null,"Herstellkosten",{"$f":"Berechnungen!M21","v":1091.1851851851852}]
[null,"Maschinenstundensatz bei Beschäftigungsrückgang ",null,null,null,null,"Verzicht auf Fixkostendeckung",null,null,{"$f":"IF(J34>0,Berechnungen!C17,0)","v":0},"%",null,"Selbstkosten",{"$f":"Berechnungen!M24","v":1331.245925925926}]
[null,"ohne Verzicht auf Fixkostendeckung oder Verzicht auf",null,null,null,null,"Maschinenstundensatz fix",null,null,{"$f":"Berechnungen!F71","v":0},"€",null,"Barverkaufspreis",{"$f":"Berechnungen!M26","v":1397.8082222222224}]
[null,"Deckung eines Teiles der gesamten fixen Kosten.",null,null,null,null,"Maschinenstundensatz variabel",null,null,{"$f":"Berechnungen!G71","v":0},"€",null,"Nettoverkaufspreis",{"$f":"Berechnungen!M30","v":1601.1548937253406}]
[null,"Bei einem Verzicht auf Fixkostendeckung, der dem",null,null,null,null,"Maschinenstundensatz insgesamt",null,null,{"$f":"Berechnungen!H71","v":0},"€",null,{"$f":"IF(Berechnungen!K31=\"ohne Verzicht auf Fixkostendeckung\",\"kein Beschäftigungsrückgang, kein Verzicht auf Fixkostendeckung\",\"\")","v":"kein Beschäftigungsrückgang, kein Verzicht auf Fixkostendeckung"}]
[null,"Beschäftigungsrückgang entspricht, bleibt der",null,null,null,null,"jährlich ersetzbare fixe Kosten",null,null,{"$f":"Berechnungen!F73","v":0},"€"]
[null,"der Maschinenstundensatz ohne Beschäftigungsrückgang",null,null,null,null,"jährlich nicht ersetzbare fixe Kosten",null,null,{"$f":"Berechnungen!F75","v":0},"€"]
[null,"erhalten. ",null,null,null,null,"gesamte jährliche fixe Kosten",null,null,{"$f":"Berechnungen!E31","v":79266.666666666672},"€"]
[null,"Der Maschinenstundensatz fix und die nicht ersetzbaren",null,null,null,null,"monatlich ersetzbare fixe Kosten",null,null,{"$f":"Berechnungen!F74","v":0},"€"]
[null,"fixen Kosten werden von den gesamten fixen Kosten",null,null,null,null,"monatlich nicht ersetzbare fixe Kosten",null,null,{"$f":"Berechnungen!F76","v":0},"€"]
[null,"berechnet.",null,null,null,null,"gesamte monatliche fixe Kosten",null,null,{"$f":"Berechnungen!F31","v":6605.5555555555557},"€"]
[]
[null,"Fall 4",null,null,null,null,"neue monatliche Arbeitszeit",null,null,{"$f":"Berechnungen!H17","v":0},"h",null,"Herstellkosten",{"$f":"Berechnungen!N21","v":0}]
[null,"Strukturelle Arbeitszeitänderungen ",null,null,null,null,"Verzicht auf Fixkostendeckung",null,null,{"$f":"Berechnungen!C87","v":0},"%",null,"Selbstkosten",{"$f":"Berechnungen!N24","v":0}]
[null,"ohne Verzicht auf Fixkostendeckung oder Verzicht auf",null,null,null,null,"Maschinenstundensatz fix",null,null,{"$f":"Berechnungen!F85","v":""},"€",null,"Barverkaufspreis",{"$f":"Berechnungen!N26","v":0}]
[null,"Deckung eines Teiles der gesamten fixen Kosten.",null,null,null,null,"Maschinenstundensatz variabel",null,null,{"$f":"Berechnungen!G85","v":""},"€",null,"Nettoverkaufspreis",{"$f":"Berechnungen!N30","v":0}]
[null,null,null,null,null,null,"Maschinenstundensatz insgesamt",null,null,{"$f":"Berechnungen!H85","v":""},"€",null,{"$f":"IF(Berechnungen!H17>0,IF(Berechnungen!C87=0,\"Arbeitszeitveränderungen ohne Verzicht auf Fixkostendeckung\",\"Arbeitszeitveränderung mit Verzicht auf Fixkostendeckung\"),\"keine Arbeitszeitänderung\")","v":"keine Arbeitszeitänderung"}]
[null,"Änderungen der Arbeitszeit führen zu einer Änderung des",null,null,null,null,"jährlich ersetzbare fixe Kosten",null,null,{"$f":"Berechnungen!F87","v":""},"€"]
[null,"fixen Maschinenstundensatzes. Der variable Maschinen-",null,null,null,null,"jährlich nicht ersetzbare fixe Kosten",null,null,{"$f":"Berechnungen!F89","v":""},"€"]
[null,"stundensatz bleibt unverändert.",null,null,null,null,"gesamte jährliche fixe Kosten",null,null,{"$f":"Berechnungen!C86","v":""},"€"]
[null,"Der Maschinenstundensatz fix und die nicht ersetzbaren",null,null,null,null,"monatlich ersetzbare fixe Kosten",null,null,{"$f":"Berechnungen!F88","v":""},"€"]
[null,"fixen Kosten werden von den gesamten fixen Kosten",null,null,null,null,"monatlich nicht ersetzbare fixe Kosten",null,null,{"$f":"Berechnungen!F90","v":""},"€"]
[null,"berechnet.",null,null,null,null,"gesamte monatliche fixe Kosten",null,null,{"$f":"IF(Berechnungen!H17>0,J54+J55,\"\")","v":""},"€"]

{"sheet":"Berechnungen","index":1,"n_rows":90,"n_cols":14,"rows_kept":90,"cut":false,"hidden":false,"merged":[[30,10,30,12],[11,3,11,7],[54,9,54,12],[52,5,53,7],[37,9,49,10],[34,5,35,5],[19,6,19,7],[38,5,40,7],[12,3,12,4],[13,3,13,4],[14,3,14,4],[15,3,15,4],[55,3,57,4],[47,1,48,1],[45,1,46,1],[61,3,61,4],[45,2,46,2],[47,2,48,2],[45,3,45,4],[58,3,58,4],[59,3,59,4],[60,3,60,4],[16,1,17,1],[42,3,42,4],[43,3,43,4],[47,3,47,4],[48,3,48,4],[16,2,17,2],[19,4,19,5],[2,1,2,2],[2,9,2,10],[44,6,49,7],[57,6,62,7],[1,9,1,10],[16,3,16,4],[17,3,17,4],[9,3,9,4],[10,3,10,4],[4,3,4,4],[5,3,5,4],[6,3,6,4],[7,3,7,4],[8,3,8,4],[4,5,4,6],[46,3,46,4],[65,5,67,7],[69,3,69,4],[70,3,70,4],[71,6,76,7],[72,1,73,1],[72,2,73,2],[72,3,72,4],[73,3,73,4],[74,1,75,1],[74,2,75,2],[74,3,74,4],[75,3,75,4],[87,1,89,2],[79,5,81,7],[83,3,83,4],[84,3,84,4],[85,6,90,7],[86,3,86,4],[87,3,87,4],[88,3,88,4],[89,3,89,4]]}
[]
[null,"Maschinenstundensatzrechnung",null,null,null,"Legende","Eingabefeld","berechnetes Feld",null,"Kostenträgerrechnung"]
[null,"(eine Fertigungsmaschine)"]
[null,null,null,null,null,"Jahreswerte","Monatswerte ","Fixkostenanteil ",null,"Fertiungsmaterial",500]
[null,null,null,"maschinenabhängige Kosten",null,"(alternative Eingabe)",null,"in Prozent",null,"Materialgemeinkostenzuschlagssatz in %",12]
[null,"Maschinenanschaffungswert (€)",320000,"Engergiegrundgebühr",null,null,50,100,null,"Fertigungsstunden",5]
[null,"Nutzungsdauer (Jahre)",12,"Platzkosten je m2",null,null,120,100,null,"Lohnsatz je Stunde",22.5]
[null,"Wiederbeschaffunswert (€)",344000,"Wartungskosten",null,12000,null,70,null,"Verwaltungsgemeinkostenzuschlagssatz in %",10]
[null,"Maschinenleistung (kW)",50,"Werkzeugkosten ",null,null,600,100,null,"Vertriebsgemeinkostenzuschlagssatz in %",12]
[null,"Kalkulatorischer Zinssatz (%)",8,"Betriebsstoffkosten ",null,null,null,100,null,"Gewinnzuschlag in %",5]
[null,"Energiepreis (€/kW)",0.16,"sonst. maschinenabhängige Kosten",null,null,null,100,null,"Kundenskonto in %",3]
[null,"Platzbedarf (m2)",15,null,null,null,null,null,null,"Kundenrabatt in %",10]
[null,"jährliche Laufstunden",1800,"lohnabhängige Kosten",null,null,null,null,null,null,"Fall 1 ","Fall 2 ","Fall 3","Fall 4"]
[null,"(alternativ) monatliche Laufstunden",0,"Fertigungslöhne ",null,10000,null,"Fall 4",null,"Fertigungsmaterial",{"$f":"IF(H17>0,0,IF(OR(H44>0,AND(H57=0,H71=0)),$K$4,0))","v":500},{"$f":"IF(H17>0,0,IF(OR(H57>0,AND(H44=0,H71=0)),$K$4,0))","v":500},{"$f":"IF(H17>0,0,IF(OR(H71>0,AND(H44=0,H57=0)),$K$4,0))","v":500},{"$f":"IF(H17>0,$K$4,0)","v":0}]
[null,null,null,"Hilfslöhne",null,1000,null,"neue monatliche",null,"Materialgemeinkosten",{"$f":"$K$14*$K$5/100","v":60},{"$f":"$L$14*$K$5/100","v":60},{"$f":"$M$14*$K$5/100","v":60},{"$f":"IF(H17>0,$N$14*$K$5/100,0)","v":0}]
[null,"Beschäftigungsrückgang in %",0,"Soziale Abgaben",null,5000,null,"Arbeitszeit",null,"Materialkosten",{"$f":"K14+K15","v":560},{"$f":"L14+L15","v":560},{"$f":"M14+M15","v":560},{"$f":"N14+N15","v":0}]
[null,"Verzicht auf Fixkostendeckung in %",0,"sonstige lohnabhängige Kosten ",null,null,600,0,null,"Fertigungslöhne",{"$f":"IF(H17>0,0,IF(OR(H44>0,AND(H57=0,H71=0)),$K$6*$K$7,0))","v":112.5},{"$f":"IF(H17>0,0,IF(OR(H57>0,AND(H44=0,H71=0)),$K$6*$K$7,0))","v":112.5},{"$f":"IF(H17>0,0,IF(OR(H71>0,AND(H44=0,H57=0)),$K$6*$K$7,0))","v":112.5},{"$f":"IF(H17>0,$K$6*$K$7,0)","v":0}]
[null,null,null,"lohnabhängige Gemeinkosten",null,{"$f":"SUM(F15:F17)","v":6000},{"$f":"SUM(G15:G17)","v":600},"Stunden",null,"maschinenabhängige Fertiungsgemeinkosten",{"$f":"IF(H17>0,0,IF(OR(H44>0,AND(H57=0,H71=0)),K32*$K$6,0))","v":270.18518518518522},{"$f":"L32*$K$6","v":270.18518518518522},{"$f":"M32*$K$6","v":270.18518518518522},{"$f":"N32*$K$6","v":0}]
[null,null,null,null,null,null,null,null,null,"Restgemeinkosten",{"$f":"$K$17*$C$36","v":148.5},{"$f":"$L$17*$C$36","v":148.5},{"$f":"K19","v":148.5},{"$f":"IF(H17>0,N17*C36,0)","v":0}]
[null,null,null,null,"Fixkostenanteil",null,"variabler Kostenanteil",null,null,"Fertigungskosten",{"$f":"K17+K18+K19","v":531.18518518518522},{"$f":"L17+L18+L19","v":531.18518518518522},{"$f":"M17+M18+M19","v":531.18518518518522},{"$f":"N17+N18+N19","v":0}]
[null,"Maschinenabhängige Fertigungskosten","Jahreswerte","Monatswerte","Jahreswerte","Monatswerte","Jahreswerte","Monatswerte",null,"Herstellkosten",{"$f":"K16+K20","v":1091.1851851851852},{"$f":"L16+L20","v":1091.1851851851852},{"$f":"M16+M20","v":1091.1851851851852},{"$f":"N16+N20","v":0}]
[null,"Kalkulatorische Abschreibung",{"$f":"C8/C7","v":28666.666666666668},{"$f":"C22/12","v":2388.8888888888891},{"$f":"C22","v":28666.666666666668},{"$f":"D22","v":2388.8888888888891},{"$f":"C22-E22","v":0},{"$f":"D22-F22","v":0},null,"Verwaltungsgemeinkosten",{"$f":"$K$21*$K$8/100","v":109.11851851851853},{"$f":"$L$21*$K$8/100","v":109.11851851851853},{"$f":"$M$21*$K$8/100","v":109.11851851851853},{"$f":"IF(H17>0,$N$21*$K$8/100,0)","v":0}]
[null,"Kalkulatorische Zinsen",{"$f":"(C6*C10/100)/2","v":12800},{"$f":"C23/12","v":1066.6666666666667},{"$f":"C23","v":12800},{"$f":"D23","v":1066.6666666666667},0,0,null,"Vertriebsgemeinkosten",{"$f":"$K$21*$K$9/100","v":130.94222222222223},{"$f":"$L$21*$K$9/100","v":130.94222222222223},{"$f":"$M$21*$K$9/100","v":130.94222222222223},{"$f":"IF(H17>0,$N$21*$K$9/100,0)","v":0}]
[null,"Energiekosten",{"$f":"IF(C13>0,C9*C13*C11,C9*C14*C11*12)","v":14400},{"$f":"C24/12","v":1200},0,0,14400,1200,null,"Selbstkosten",{"$f":"K21+K22+K23","v":1331.245925925926},{"$f":"L21+L22+L23","v":1331.245925925926},{"$f":"M21+M22+M23","v":1331.245925925926},{"$f":"N21+N22+N23","v":0}]
[null,"Grundgebühr für Energiebereitstellung",{"$f":"IF(F6>0,F6,G6*12)","v":600},{"$f":"IF(G6>0,G6,C25/12)","v":50},{"$f":"C25","v":600},{"$f":"D25*H6/100","v":50},0,0,null,"Gewinnzuschlag",{"$f":"K24*K10/100","v":66.562296296296296},{"$f":"L24*K10/100","v":66.562296296296296},{"$f":"M24*K10/100","v":66.562296296296296},{"$f":"N24*K10/100","v":0}]
[null,"Platzkosten",{"$f":"IF(F7>0,F7*C12,G7*C12*12)","v":21600},{"$f":"IF(G7>0,G7*C12,C26/12)","v":1800},{"$f":"C26*H7/100","v":21600},1800,0,0,null,"Barverkaufspreis",{"$f":"K24+K25","v":1397.8082222222224},{"$f":"L24+L25","v":1397.8082222222224},{"$f":"M24+M25","v":1397.8082222222224},{"$f":"N24+N25","v":0}]
[null,{"$f":"D8","v":"Wartungskosten"},{"$f":"IF(F8>0,F8,G8*12)","v":12000},{"$f":"IF(G8>0,G8,F8/12)","v":1000},{"$f":"C27*H8/100","v":8400},700,{"$f":"C27-E27","v":3600},300,null,"Kundenskonto",{"$f":"K26*K11/(100-K11)","v":43.231182130584202},{"$f":"L26*K11/(100-K11)","v":43.231182130584202},{"$f":"M26*K11/(100-K11)","v":43.231182130584202},{"$f":"N26*K11/(100-K11)","v":0}]
[null,{"$f":"D9","v":"Werkzeugkosten "},{"$f":"IF(F9>0,F9,G9*12)","v":7200},{"$f":"IF(G9>0,G9,F9/12)","v":600},{"$f":"C28*H9/100","v":7200},600,0,0,null,"Zielverkaufspreis",{"$f":"K26+K27","v":1441.0394043528065},{"$f":"L26+L27","v":1441.0394043528065},{"$f":"M26+M27","v":1441.0394043528065},{"$f":"N26+N27","v":0}]
[null,{"$f":"D10","v":"Betriebsstoffkosten "},{"$f":"IF(F10>0,F10,G10*12)","v":0},{"$f":"IF(G10>0,G10,F10/12)","v":0},{"$f":"C29*H10/100","v":0},0,0,0,null,"Kundenrabatt",{"$f":"K28*K12/(100-K12)","v":160.11548937253406},{"$f":"L28*K12/(100-K12)","v":160.11548937253406},{"$f":"M28*K12/(100-K12)","v":160.11548937253406},{"$f":"N28*K12/(100-K12)","v":0}]
[null,{"$f":"D11","v":"sonst. maschinenabhängige Kosten"},{"$f":"IF(F11>0,F11,G11*12)","v":0},{"$f":"IF(G11>0,G11,F11/12)","v":0},{"$f":"C30*H11/100","v":0},0,0,0,null,"Nettoverkaufspreis",{"$f":"K28+K29","v":1601.1548937253406},{"$f":"L28+L29","v":1601.1548937253406},{"$f":"M28+M29","v":1601.1548937253406},{"$f":"N28+N29","v":0}]
[null,"Gesamtkosten",{"$f":"SUM(C22:C30)","v":97266.666666666672},8105.5555555555557,79266.666666666672,6605.5555555555557,18000,1500,null,null,{"$f":"IF(AND(H44=0,H57=0,H71=0),\"ohne Verzicht auf Fixkostendeckung\",\"\")","v":"ohne Verzicht auf Fixkostendeckung"}]
[null,null,null,null,null,null,null,null,null,"Maschinenstundensatz",{"$f":"IF(H17>0,0,IF(AND(C16=0,C17=0),C33,H44))","v":54.037037037037038},{"$f":"IF(H17>0,0,IF(AND(C16=0,C17=0),C33,H57))","v":54.037037037037038},{"$f":"IF(H17>0,0,IF(AND(C16=0,C17=0),C33,H71))","v":54.037037037037038},{"$f":"IF(H17>0,H85,0)","v":0}]
[null,"Maschinenstundensatz",{"$f":"IF($C$13>0,C31/$C$13,(D31/$C$14))","v":54.037037037037038},{"$f":"IF($C$14>0,D31/$C$14,(C31/$C$13))","v":54.037037037037038},{"$f":"IF($C$13>0,E31/$C$13,(F31/$C$14))","v":44.037037037037038},{"$f":"IF($C$14>0,F31/$C$14,(E31/$C$13))","v":44.037037037037038},{"$f":"IF($C$13>0,G31/$C$13,(H31/$C$14))","v":10},{"$f":"IF($C$14>0,H31/$C$14,(G31/$C$13))","v":10},null,"Verzicht auf Fixkostendeckung",{"$f":"IF(H17>0,C87/100,C17/100)","v":0}]
[]
[null,"Restgemeinkosten",{"$f":"F18+(G18*12)","v":13200},{"$f":"G18+(F18/12)","v":1100},null,"Maschinen- platzkosten","Jahreswerte","Monatswerte"]
[null,"Restgemeinkostenzuschlagssatz (%)",{"$f":"C35/(F14+(G14*12))","v":1.32},{"$f":"D35/(G14+(F14/12))","v":1.3199999999999998},null,null,{"$f":"C35+C31","v":110466.66666666667},{"$f":"D31+D35","v":9205.5555555555547}]
[]
[null,null,null,null,null,null,null,null,null,"Mit der Zielwertsuche von Excel kann bei einem Beschäftigungsrückgang der Maschinenstundensatz und der damit verbundene Verzicht auf Fixkostendeckung berechnet werden, wenn eine bestimmter                                                          Nettoverkaufspreis eingehalten werden soll.                  (Daten - Was-wäre-wenn-Analyse - Zielwertsuche)              Zielzelle: K30 (bzw. M30)                                                                                              Zielwert: einzuhaltender Nettoverkaufspreis                              veränderbare Zelle: C17                                                                          Maschinenstundensatz und Verzicht auf Fixkostendeckung werden dann in Prozent ausgewiesen."]
[null,"Maschinenstundensatz bei Beschäftigungsrückgang ",null,null,"Fall 1",{"$f":"IF(C16=0,\"trifft nicht zu, kein Beschäftigungsrückgang\",IF(C17=100,\"Maschinenstundensatz unverändert; Verzicht auf Deckung der gesamten Fixkosten des Beschäftigungsrückganges\",\"veränderter Maschinenstundensatz wegen Beschäftigungsrückgang; anteiliger Verzicht auf  Fixkosten des Beschäftigungsrückganges\"))","v":"trifft nicht zu, kein Beschäftigungsrückgang"}]
[null,"(ohne und mit Verzicht auf Deckung der Fixkosten des Beschäftigungsrückganges)"]
[null,"(der Verzicht auf Fixkostendeckung bezieht sich nur auf den Anteil des Beschäftigungsrückganges.)"]
[]
[null,"Beschäftigungsrückgang in %",{"$f":"C16","v":0},"Maschinenstundensatz",null,"fix","variabel","insgesamt"]
[null,"Laufzeitreduzierung",{"$f":"IF(C13>0,C13*(C43/100),(C14*12)*(C43/100))","v":0},"bei Beschäftigungsrückgang",null,{"$f":"IF(C16>0,IF(C13>0,(E31-C48)/C45,((F31*12)-C48)/((C14*12)-C44)),0)","v":0},{"$f":"IF(C16>0,G33,0)","v":0},{"$f":"F44+G44","v":0}]
[null,"verbleibende Maschinenlaufzeit",{"$f":"IF(C13>0,C13-C44,(C14*12)-C44)","v":1800},null,null,null,"Die ersetzbaren und nicht ersetzbaren fixen Kosten werden vom Anteil des Beschäftigungsrückganges berechnet."]
[null,"Verzicht auf Fixkostendeckung der Laufzeitreduzierung in Prozent",{"$f":"IF(C16>0,C17,0)","v":0},"Jährlich ersetzbare Fixkosten",null,{"$f":"IF(C16>0,E31-C48,0)","v":0}]
[null,null,null,"Monatlich ersetzbare Fixkosten",null,{"$f":"F46/12","v":0}]
[null,"Verzicht auf Fixkostendeckung der Laufzeitreduzierung in €",{"$f":"IF(C16>0,(E31-(E31*(100%-C16%)))*C17%,0)","v":0},"Jährlich nicht ersetzbar",null,{"$f":"IF(C16=0,0,E31-F46)","v":0}]
[null,null,null,"Monatlich nicht ersetzbar",null,{"$f":"IF(C16=0,0,F31-F47)","v":0}]
[]
[]
[]
[null,"Maschinenstundensatz  mit Verzicht auf Fixkostendeckung ",null,null,"Fall 2",{"$f":"IF(C17=0,\"trifft nicht zu, kein Verzicht auf Fixkostendeckung\",\"veränderter Maschinenstundensatz wegen Verzicht auf Fixkostendeckung\")","v":"trifft nicht zu, kein Verzicht auf Fixkostendeckung"}]
[null,"ohne Beschäftigungsrückgang"]
[null,"(der Verzicht auf Fixkostendeckung bezieht sich auf die gesamten Fixkosten)"]
[null,null,null,"Maschinenstundensatz; Verzicht auf Fixkkostendeckung; keine Beschäftigungsänderung",null,"fix","variabel","insgesamt"]
[null,"Jährliche Laufstunden",{"$f":"IF(C13>0,C13,C14*12)","v":1800},null,null,{"$f":"IF(AND(C16=0,C17>0),E33*((100-C17)/100),0)","v":0},{"$f":"IF(C16>0,0,IF(AND(C16=0,C17>0),G33,0))","v":0},{"$f":"F57+G57","v":0}]
[null,"monatliche Laufstunden",{"$f":"IF(C14>0,C14,C13/12)","v":150},null,null,null,"Der Anteil  der ersetzbaren und nicht ersetzbaren fixen Kosten wird von den gesamten fixen Kosten berechnet."]
[null,null,null,"Jährlich ersetzbare Fixkosten",null,{"$f":"IF(AND(C16=0,C17>0),C57*F57,0)","v":0}]
[null,null,null,"Monatlich ersetzbare Fixkosten",null,{"$f":"F59/12","v":0}]
[null,null,null,"Jährlich nicht ersetzbar",null,{"$f":"IF(AND(C16=0,C17>0),E31-F59,0)","v":0}]
[null,null,null,"Monatlich nicht ersetzbar",null,{"$f":"F61/12","v":0}]
[]
[]
[]
[null,"Maschinenstundensatz bei Beschäftigungsrückgang ",null,null,"Fall 3",{"$f":"IF(C70=0,\"trifft nicht zu, kein Beschäftigungsrückgang\",IF(C17=100,\"Verzicht auf Deckung der gesamten Fixkosten\",\"veränderter Maschinenstundensatz wegen Beschäftigungsrückgang und Verzicht auf Deckung eines Anteils der gesamten Fixkosten\"))","v":"trifft nicht zu, kein Beschäftigungsrückgang"}]
[null,"(ohne und mit Verzicht auf Deckung eines Anteils der gesamten Fixkosten)"]
[null,"(der Verzicht auf Fixkostendeckung bezieht sich auf die gesamten Fixkosten.)"]
[]
[null,"Beschäftigungsrückgang in %",{"$f":"C16","v":0},"Maschinenstundensatz",null,"fix","variabel","insgesamt"]
[null,"Laufzeitreduzierung",{"$f":"IF(C13>0,C13*(C43/100),(C14*12)*(C43/100))","v":0},"bei Beschäftigungsrückgang",null,{"$f":"IF(C16>0,IF(C13>0,(E31-C75)/C72,((F31*12)-C75)/((C14*12)-C71)),0)","v":0},{"$f":"IF(C16>0,G33,0)","v":0},{"$f":"F71+G71","v":0}]
[null,"verbleibende Maschinenlaufzeit",{"$f":"IF(C13>0,C13-C71,(C14*12)-C71)","v":1800},null,null,null,"Die ersetzbaren und nicht ersetzbaren fixen Kosten werden vom Anteil des Beschäftigungsrückganges berechnet."]
[null,"Verzicht auf Fixkostendeckung der Laufzeitreduzierung in Prozent",{"$f":"IF(C16>0,C17,0)","v":0},"Jährlich ersetzbare Fixkosten",null,{"$f":"IF(C16>0,E31-C75,0)","v":0}]
[null,null,null,"Monatlich ersetzbare Fixkosten",null,{"$f":"F73/12","v":0}]
[null,"Verzicht auf Fixkostendeckung der Laufzeitreduzierung in €",{"$f":"IF(AND(C16>0,C17>0),E31*C17%,0)","v":0},"Jährlich nicht ersetzbar",null,{"$f":"IF(C16=0,0,E31-F73)","v":0}]
[null,null,null,"Monatlich nicht ersetzbar",null,{"$f":"IF(C16=0,0,F31-F74)","v":0}]
[]
[]
[]
[null,"Strukturelle Arbeitszeitänderungen",null,null,"Fall 4",{"$f":"IF(H17=0,\"trifft nicht zu, keine strukturelle Arbeitszeiterhöhung\",IF(C87>0,\"strukturelle Arbeitszeiterhöhung und Verzicht auf Fixkkostendeckung\",\"strukturelle Arbeitszeiterhöhung; kein Verzicht auf Fixkostendeckung\"))","v":"trifft nicht zu, keine strukturelle Arbeitszeiterhöhung"}]
[null,"(die Arbeitszeit wird aufgrund von strukturellen Maßnahmen geändert)"]
[null,"(Änderung der gesetzlichen oder vertraglichen Wochenarbeitszeit, Einführung der Schichtarbeit, … )"]
[]
[null,"neue Arbeitszeit",{"$f":"IF(H17>0,H17,\"\")","v":""},"Maschinenstundensatz",null,"fix","variabel","insgesamt"]
[null,"neue jährliche variable Kosten",{"$f":"IF(H17>9,IF(C14>0,(G31/(C14*12))*(H17*12),(G31/C13)*(H17*12)),\"\")","v":""},"bei Arbeitszeitänderung",null,{"$f":"IF(H17>0,F87/(H17*12),\"\")","v":""},{"$f":"IF(H17>0,C85/(H17*12),\"\")","v":""},{"$f":"IF(H17>0,F85+G85,\"\")","v":""}]
[null,"jährliche Fixkosten",{"$f":"IF(H17>0,E31,\"\")","v":""},null,null,null,"Die ersetzbaren und nicht ersetzbaren fixen Kosten werden von den gesamten Fixkosten berechnet."]
[null,"Verzicht auf Fixkostendeckung in %",0,"Jährlich ersetzbare Fixkosten",null,{"$f":"IF(H17>0,IF(C87>0,(C86-(C86*C87/100)),C86),\"\")","v":""}]
[null,"Strukturelle Arbeitszeitänderungen können zu Änderungen der gesamten fixen und variablen Kosten haben. In diesem Fall sind die Ausgangsdaten zu ändern.",null,"Monatlich ersetzbare Fixkosten",null,{"$f":"IF(H17>0,F87/12,\"\")","v":""}]
[null,null,null,"Jährlich nicht ersetzbar",null,{"$f":"IF(H17>0,C86-F87,\"\")","v":""}]
[null,null,null,"Monatlich nicht ersetzbar",null,{"$f":"IF(H17>0,(C86/12)-F88,\"\")","v":""}]

{"sheet":"Tabelle3","index":2,"n_rows":0,"n_cols":0,"rows_kept":0,"cut":false,"hidden":false,"merged":[]}